[Event "Czech Championship U20 Open 2023"]
[Site "Jaromerice nad Rokytnou"]
[Date "2023.03.11"]
[Round "2.4"]
[White "Smolik, Jachym"]
[Black "Hrbek, Stepan"]
[Result "1-0"]
[ECO "B30"]
[WhiteElo "2297"]
[BlackElo "2340"]
[Annotator "TA"]
[PlyCount "79"]
[EventDate "2023.03.10"]
[EventType "tourn"]
[EventCountry "CZE"]
[SourceTitle "playchess.com"]
[Source "ChessBase"]
[SourceQuality "1"]
[TimeControl "40/5400+30:1800+30"]

{[%evp 9,79,0,10,0,-6,-25,10,0,8,8,30,35,25,-20,-33,-38,-33,-23,-23,-74,28,49,57,-35,-48,-41,-28,-50,0,0,12,19,12,21,57,-18,162,21,139,45,182,16,404,407,718,718,711,700,693,662,633,609,585,545,808,818,802,802,827,803,803,803,772,752,942,939,1130,1130,1116,1094,1070,1055]} 1. e4 {[%emt 0:00:08] Erenburg,Sergey} c5 {[%emt 0:00:37]} 2. Nf3 {[%emt 0:00:10]} Nc6 {[%emt 0:00:40]} 3. Bb5 {[%emt 0:00:06]} e6 {[%emt 0:00:12]} 4. Bxc6 {[%emt 0:00:32]} bxc6 {[%emt 0:00:08]} 5. d3 {[%emt 0:00:30]} Qc7 {[%emt 0:00:16]} 6. e5 {[%emt 0:07:09] B30: Sicilian: 2...Nc6 3 Bb5, lines without ...g6.} f6 {[%emt 0:13:36]} 7. Qe2 {[%emt 0:02:30]} fxe5 {[%emt 0:03:30]} 8. Nxe5 {[%emt 0:00:08] The position is equal.} Nf6 {[%emt 0:01:12] [#] Repels Qh5+} 9. f4 $146 {[%emt 0:04:10]} ({Predecessor:} 9. O-O Be7 10. f4 O-O 11. Nd2 d6 12. Nec4 Bd7 13. b3 Nd5 14. Ne4 Rf7 15. g3 {½-½ Volkmann,F (2452)-Moiseenko,A (2618) EU-chT (Men) 14th 2003 (5.1)}) 9... Be7 {[%emt 0:08:31]} 10. c4 {[%emt 0:08:19]} O-O {[%emt 0:00:49]} 11. Nc3 {[%emt 0:04:01]} d6 {[%emt 0:04:00]} 12. Nf3 {[%emt 0:00:03]} Nh5 $1 {[%emt 0:01:10]} 13. g3 {[%emt 0:02:23]} e5 {[%emt 0:01:08]} 14. Ng5 {[%emt 0:10:41] [#]} (14. fxe5 $11 dxe5 15. O-O (15. Nxe5 Bd6 $17) (15. Qxe5 $2 {loses.} Qxe5+ 16. Nxe5 Bd6 $19)) 14... Bxg5 {[%emt 0:05:02]} (14... Nf6 $1 $17 {And now ...Bg4 would win.} 15. fxe5 Bg4) 15. fxg5 $11 {[%emt 0:00:20]} g6 {[%emt 0:00:56]} 16. Bd2 {[%emt 0:19:29]} (16. g4 $1 $14 Nf4 17. Bxf4 Rxf4 18. Rg1) 16... Bh3 $15 {[%emt 0:02:29]} 17. O-O-O {[%emt 0:09:08]} Qd7 {[%emt 0:00:25]} 18. Qe4 {[%emt 0:06:55]} Rf7 {[%emt 0:19:48]} ({Black should try} 18... Rab8 $15) 19. Rhg1 $11 {[%emt 0:04:40][%cal Bh1g1,Bg1g3,Bg3f3][%mdl 32]} Raf8 {[%emt 0:00:18]} 20. g4 {[%emt 0:02:43] Prevents Bf5} Ng7 {[%emt 0:00:15]} ({But not} 20... Nf4 21. Qf3 $16) 21. Rg3 {[%emt 0:00:29] Dodges Rf3} Bf1 {[%emt 0:00:12]} 22. Qe3 {[%emt 0:08:58]} (22. h4 $1 $14) 22... Qe7 $2 {[%emt 0:12:21] Black is now going downhill.} (22... Ne6 $1 $11 {and Black has nothing to worry.}) 23. Re1 {[%emt 0:01:14]} (23. Ne4 $18) 23... Ne8 {[%emt 0:00:42]} (23... Ne6 $1 $11 {keeps the balance.}) 24. Kc2 {[%emt 0:02:26]} (24. h4 $16) 24... Rf2 {[%emt 0:09:19]} (24... Ng7 $14) 25. Nd1 $2 {[%emt 0:02:41]} ({White should play} 25. Ne4 $18 R2f7 26. Kb1) 25... Rg2 {[%emt 0:02:28][%mdl 8192] [#]} (25... Rxh2 $2 26. Qg1 Rh3 27. Rxh3 Bxh3 28. Qg3 $18) (25... R2f7 $1 $11 {and Black stays safe.}) 26. Rf3 $1 $18 {[%emt 0:00:08]} Rxd2+ {[%emt 0:03:12]} (26... Rxf3 $2 27. Qxf3 Qf8 28. Rxf1 $18) (26... Bxd3+ $142 27. Qxd3 Rxg4 28. Rxf8+ Qxf8) 27. Kxd2 {[%emt 0:00:05] White is clearly winning.} Bg2 {[%emt 0:00:03]} 28. Rxf8+ {[%emt 0:00:11]} Qxf8 {[%emt 0:00:05]} 29. Re2 {[%emt 0:01:36]} Qf3 {[%emt 0:00:31]} 30. Qf2 {[%emt 0:01:21]} Bh1 {[%emt 0:00:44]} 31. Ne3 {[%emt 0:01:18]} Ng7 {[%emt 0:05:12]} 32. Qxf3 {[%emt 0:00:06]} Bxf3 {[%emt 0:00:03][%mdl 4096] Endgame KRN-KBN} 33. Rf2 {[%emt 0:00:04]} e4 {[%emt 0:00:04]} 34. dxe4 {[%emt 0:00:10]} Bxe4 {[%emt 0:00:05]} 35. Rf6 {[%emt 0:00:17]} d5 {[%emt 0:00:04]} 36. Rxc6 {[%emt 0:00:36]} d4 {[%emt 0:00:06]} 37. Nd5 {[%emt 0:00:04] Strongly threatening Nf6+.} Kf7 {[%emt 0:00:04] Inhibits Nf6.} 38. Rc7+ {[%emt 0:00:25]} Kf8 {[%emt 0:00:08]} 39. Nf6 {[%emt 0:00:30]} Bf3 {[%emt 0:00:10]} 40. Nxh7+ {[%emt 0:00:22] Weighted Error Value: White=0.36/Black=0.51} 1-0

[Event "Czech Championship U20 Open 2023"]
[Site "Jaromerice nad Rokytnou"]
[Date "2023.03.11"]
[Round "2.5"]
[White "Svanda, Ondrej"]
[Black "Ocelak, Jakub"]
[Result "1-0"]
[ECO "C58"]
[WhiteElo "2366"]
[BlackElo "2190"]
[Annotator "TA"]
[PlyCount "69"]
[EventDate "2023.03.10"]
[EventType "tourn"]
[EventCountry "CZE"]
[SourceTitle "playchess.com"]
[Source "ChessBase"]
[SourceQuality "1"]
[TimeControl "40/5400+30:1800+30"]

{[%evp 14,69,43,43,36,30,26,30,32,29,29,38,47,42,36,58,43,57,99,93,78,43,72,0,0,0,2,8,7,0,7,24,66,69,131,94,108,84,175,170,257,233,251,233,305,291,350,352,460,446,484,477,479,474,474,445,908,602]} 1. e4 {[%emt 0:00:04]} e5 {[%emt 0:01:28]} 2. Nf3 {[%emt 0:00:04]} Nc6 {[%emt 0:00:04]} 3. Bc4 {[%emt 0:00:03]} Nf6 {[%emt 0:00:07]} 4. Ng5 {[%emt 0:07:22]} d5 {[%emt 0:00:11]} 5. exd5 {[%emt 0:00:01]} Na5 {[%emt 0:00:08]} 6. Bb5+ {[%emt 0:00:05]} c6 {[%emt 0:00:06]} 7. dxc6 {[%emt 0:00:02]} bxc6 {[%emt 0:00:07]} 8. Bd3 {[%emt 0:00:01]} Nd5 {[%emt 0:17:20] C58: Two Knights: 4 Ng5 d5 5 exd5 Na5 sidelines.} 9. Nf3 {[%emt 0:00:02][%cal Oe1g1]} (9. Qh5 g6 10. Nxf7 gxh5 $17) 9... Bd6 {[%emt 0:03:22]} 10. O-O {[%emt 0:00:03]} O-O {[%emt 0:01:52] White has an edge.} 11. Re1 $1 {[%emt 0:00:05][%cal Oc2c3]} Re8 {[%emt 0:03:05] 11...f5 is more advanced technology.} 12. Nc3 {[%emt 0:00:52]} f5 {[%emt 0:07:45]} 13. Bf1 {[%emt 0:05:04]} e4 {[%emt 0:20:50]} 14. Nxd5 {[%emt 0:00:08]} cxd5 {[%emt 0:00:17]} 15. Nd4 {[%emt 0:00:01]} Qh4 {[%emt 0:03:48][%csl Gd6][%cal Rh4h2] [#]} 16. g3 {[%emt 0:06:06]} Qf6 {[%emt 0:00:11]} 17. Nb5 {[%emt 0:29:05]} Bb8 {[%emt 0:15:23] [#]} 18. d4 $146 {[%emt 0:05:42]} (18. d3 $16) ({Predecessor:} 18. d3 a6 19. dxe4 Qf7 20. Nc3 dxe4 21. Qd5 Qxd5 22. Nxd5 Be6 23. Rd1 Nc6 24. c4 {1-0 Bobel,P (2281)-Manninen,J (2117) EU-ch C71P/sf05 email 2017}) 18... Be6 $11 {[%emt 0:08:17]} 19. f4 {[%emt 0:00:35]} a6 {[%emt 0:03:49]} 20. Nc3 {[%emt 0:00:43]} Ba7 {[%emt 0:01:04]} 21. Be3 {[%emt 0:00:36]} (21. Bxa6 $2 Bxd4+ 22. Be3 Bxc3 23. bxc3 Rxa6 $19) 21... Bf7 {[%emt 0:03:24]} 22. Na4 {[%emt 0:06:02]} Nc6 {[%emt 0:02:05][%cal Ra7d4]} 23. c3 {[%emt 0:00:44]} (23. Bxa6 $2 {loses.} Nxd4 24. Kh1 Qxa6 $19) 23... Nd8 {[%emt 0:00:13]} (23... a5 $14) 24. b4 {[%emt 0:01:41][%cal Bb2b4,Bb4c5][%mdl 32]} Ne6 {[%emt 0:01:51]} 25. Nc5 {[%emt 0:03:28]} Bxc5 {[%emt 0:00:24]} (25... a5 $16 {might work better.}) 26. bxc5 $18 {[%emt 0:00:03]} ({Weaker is} 26. dxc5 Qxc3 27. g4 (27. Qxd5 Ng5 $15) 27... fxg4 $11) 26... g5 {[%emt 0:00:08]} (26... Reb8 $142 27. Rb1 Nc7) 27. Qd2 {[%emt 0:03:59][%cal Rf4g5]} h6 {[%emt 0:02:46]} 28. Rab1 {[%emt 0:05:05]} gxf4 {[%emt 0:00:45]} 29. Bxf4 {[%emt 0:03:04]} Ng5 {[%emt 0:00:11] ...Nf3+ would be deadly.} 30. Bg2 {[%emt 0:01:03]} Bh5 {[%emt 0:01:09]} 31. Rb6 {[%emt 0:00:13] White is clearly winning.} Re6 {[%emt 0:00:44] Black is weak on the dark squares} 32. Bxg5 {[%emt 0:01:46][%mdl 64] [#] Remove Defender} hxg5 {[%emt 0:00:16]} 33. Rxe6 {[%emt 0:00:02][%mdl 64] Deflection} Qxe6 {[%emt 0:00:07]} 34. Qxg5+ {[%emt 0:00:01]} Bg6 {[%emt 0:00:11]} (34... Qg6 $142 35. Qf4 Qg4) 35. h4 {[%emt 0:00:01] Weighted Error Value: White=0.10 (very precise) /Black=0.31} 1-0

[Event "Czech Championship U20 Open 2023"]
[Site "Jaromerice nad Rokytnou"]
[Date "2023.03.11"]
[Round "2.6"]
[White "Jares, Michal"]
[Black "Mach, Petr"]
[Result "1-0"]
[ECO "A05"]
[WhiteElo "2177"]
[BlackElo "2167"]
[Annotator "TA"]
[PlyCount "239"]
[EventDate "2023.03.10"]
[EventType "tourn"]
[EventCountry "CZE"]
[SourceTitle "playchess.com"]
[Source "ChessBase"]
[SourceQuality "1"]
[TimeControl "40/5400+30:1800+30"]

{[%evp 13,239,11,27,22,29,21,47,-8,0,-12,12,0,0,-6,-7,-8,-6,-18,0,0,0,-8,7,-1,-13,-13,0,0,1,0,0,0,20,16,13,19,22,23,11,11,11,9,47,47,47,47,47,47,47,47,47,47,47,18,27,38,35,38,44,37,82,72,72,70,72,66,61,62,75,75,75,72,81,73,83,83,83,83,83,83,83,83,83,83,83,83,83,83,83,83,83,83,83,83,83,83,83,83,83,83,83,83,83,0,83,83,83,20,45,60,64,45,45,45,45,34,60,60,60,60,64,60,66,60,67,60,60,60,67,67,67,66,67,67,67,68,74,51,51,51,66,51,51,51,64,64,65,64,64,64,64,64,65,65,65,65,65,65,65,65,66,66,161,161,161,161,161,161,161,161,161,161,161,161,161,161,161,161,161,161,161,161,161,161,161,161,161,161,161,161,161,161,161,161,161,161,157,146,132,0,132,132,132,131,131,131,131,131,131,131,29976,29977,29980,29981,29981,29982,29984,29985,29985,29986,29987,29988,29992,29993,29997,29998,29998,29999]} 1. Nf3 {[%emt 0:00:05]} Nf6 {[%emt 0:00:06]} 2. g3 {[%emt 0:00:06]} g6 {[%emt 0:00:02]} 3. Bg2 {[%emt 0:00:07]} Bg7 {[%emt 0:00:02]} 4. O-O {[%emt 0:00:09]} d5 {[%emt 0:00:01]} 5. d4 {[%emt 0:00:20]} c6 {[%emt 0:00:07]} 6. c4 {[%emt 0:00:12]} dxc4 {[%emt 0:00:08]} 7. a4 {[%emt 0:00:24]} O-O {[%emt 0:02:57][%cal Oc6c5]} 8. Na3 $1 {[%emt 0:02:25] D73: Fianchetto Grünfeld: 5 Nf3 .} Na6 {[%emt 0:02:12]} 9. Nxc4 {[%emt 0:01:04]} Be6 {[%emt 0:00:12]} 10. Nce5 {[%emt 0:01:24]} (10. b3 $14) 10... Bd5 {[%emt 0:13:14] [#]} 11. Bd2 $146 {[%emt 0:12:53]} ({Predecessor:} 11. Bf4 Ne4 12. Qc1 c5 13. Rd1 f6 14. dxc5 Naxc5 15. Nd2 fxe5 16. Nxe4 Nb3 17. Qb1 {1-0 Siddharth,J (2132)-Podat,V (2345) Karlsruhe Grenke op 2019 (6)}) 11... Nd7 {[%emt 0:07:19]} 12. Nxd7 {[%emt 0:07:17]} Qxd7 {[%emt 0:01:39]} 13. Bc3 {[%emt 0:02:27]} Rfd8 {[%emt 0:12:42]} 14. Qc2 {[%emt 0:00:06]} Qe6 {[%emt 0:05:57] Against e4} 15. e3 {[%emt 0:05:01]} Rac8 {[%emt 0:07:37]} 16. b4 {[%emt 0:04:44]} Be4 {[%emt 0:02:03]} 17. Qe2 {[%emt 0:03:15] Threatens to win with Ng5.} Qd6 {[%emt 0:01:43]} 18. Qb2 {[%emt 0:06:41]} Nc7 {[%emt 0:05:10]} 19. Rfc1 {[%emt 0:04:07]} Qd5 {[%emt 0:04:16]} 20. Qe2 {[%emt 0:04:02]} Qh5 {[%emt 0:03:25]} 21. h3 {[%emt 0:02:27]} Nd5 {[%emt 0:01:54]} 22. Bd2 {[%emt 0:02:32]} e5 {[%emt 0:03:23]} 23. g4 {[%emt 0:04:21]} Bxf3 {[%emt 0:00:08]} 24. Qxf3 {[%emt 0:00:14]} Qh4 {[%emt 0:00:18]} 25. dxe5 {[%emt 0:03:01]} Bxe5 {[%emt 0:00:10]} 26. Ra2 {[%emt 0:00:40]} Qe7 {[%emt 0:03:32]} 27. b5 {[%emt 0:04:10]} Nb4 {[%emt 0:00:32]} 28. Bxb4 {[%emt 0:00:52]} Qxb4 {[%emt 0:00:11]} 29. Qe4 {[%emt 0:01:43]} Qxe4 {[%emt 0:09:17]} 30. Bxe4 {[%emt 0:00:02]} cxb5 {[%emt 0:00:10]} 31. Rxc8 {[%emt 0:00:13]} Rxc8 {[%emt 0:00:03]} 32. axb5 $14 {[%emt 0:00:20][%mdl 4096] Endgame KRB-KRB} Rc5 {[%emt 0:00:10]} 33. Bd3 {[%emt 0:03:36]} Rc1+ {[%emt 0:02:09]} 34. Kg2 {[%emt 0:00:04]} Ra1 {[%emt 0:00:03]} 35. Rc2 {[%emt 0:03:00]} Ra3 {[%emt 0:03:31]} 36. Be4 {[%emt 0:02:40]} a6 {[%emt 0:01:50]} 37. Rc8+ {[%emt 0:02:20]} Kg7 {[%emt 0:00:05]} 38. Re8 {[%emt 0:00:24] Against Ra5} Bf6 {[%emt 0:00:20]} 39. Rb8 $1 {[%emt 0:03:49]} ({Much weaker is} 39. Bxb7 axb5 40. Rb8 Be5 $11) 39... axb5 {[%emt 0:02:04]} 40. Rxb7 {[%emt 0:00:23]} Ra8 {[%emt 0:01:17]} 41. Bd5 {[%emt 0:32:29]} Rf8 {[%emt 0:30:04]} 42. Rxb5 {[%emt 0:00:42] White is more active.} Re8 {[%emt 0:00:05]} 43. Ba2 {[%emt 0:09:37]} g5 {[%emt 0:00:22]} 44. Ra5 {[%emt 0:05:23]} Re5 {[%emt 0:00:45]} 45. Ra6 {[%emt 0:00:30]} Re7 {[%emt 0:00:18]} 46. Kf3 {[%emt 0:00:00]} Be5 {[%emt 0:00:00]} 47. Ke2 {[%emt 0:00:00]} h6 {[%emt 0:00:00]} 48. Bd5 {[%emt 0:00:00]} Rd7 {[%emt 0:00:00]} 49. Be4 {[%emt 0:00:00]} Re7 {[%emt 0:00:00]} 50. Bf5 {[%emt 0:00:00]} Rb7 {[%emt 0:00:00]} 51. Kf3 {[%emt 0:00:00]} Re7 {[%emt 0:00:00]} 52. Ra4 {[%emt 0:00:00]} Bf6 {[%emt 0:00:00]} 53. Be4 {[%emt 0:00:00]} Rc7 {[%emt 0:00:00]} 54. Kg3 {[%emt 0:00:00]} Rc3 {[%emt 0:00:00]} 55. Kg2 {[%emt 0:00:00]} Be5 {[%emt 0:00:00]} 56. Ra5 {[%emt 0:00:00]} Bf6 {[%emt 0:00:00]} 57. Ra7 {[%emt 0:00:00]} Be5 {[%emt 0:00:00]} 58. Ra5 {[%emt 0:00:00]} Bf6 {[%emt 0:00:00]} 59. Rf5 {[%emt 0:00:00]} Rc7 {[%emt 0:00:00] [#]} 60. h4 {[%emt 0:00:49]} Re7 {[%emt 0:00:00]} 61. hxg5 {[%emt 0:00:42]} hxg5 {[%emt 0:00:00]} 62. Bd3 {[%emt 0:00:20]} Re5 {[%emt 0:00:00]} 63. Rf3 {[%emt 0:00:06]} Re8 {[%emt 0:00:00]} 64. Kf1 {[%emt 0:02:41]} Rb8 {[%emt 0:00:00]} 65. Rf5 {[%emt 0:00:16]} Re8 {[%emt 0:00:00]} 66. Ra5 {[%emt 0:00:23]} Be5 {[%emt 0:00:00]} 67. Kg2 {[%emt 0:00:20]} Re7 {[%emt 0:00:00]} 68. Rb5 {[%emt 0:00:33]} Bf6 {[%emt 0:00:00]} 69. Kg3 {[%emt 0:00:29]} Re5 {[%emt 0:01:33]} 70. Rb4 {[%emt 0:01:07]} Be7 {[%emt 0:00:33]} 71. Ra4 {[%emt 0:00:11]} Bd6 {[%emt 0:00:56] And now ...Re4+ would win.} 72. Kg2 {[%emt 0:00:17]} Re6 {[%emt 0:00:23]} 73. Be4 {[%emt 0:00:29]} Rh6 {[%emt 0:00:16]} 74. Ra5 {[%emt 0:01:02]} Be7 {[%emt 0:00:56]} 75. f4 {[%emt 0:00:50]} gxf4 {[%emt 0:02:31]} 76. exf4 {[%emt 0:00:02]} Bd6 {[%emt 0:02:35]} 77. Kg3 {[%emt 0:00:40]} Rf6 {[%emt 0:00:20]} 78. Bf5 {[%emt 0:00:18] g5 is the strong threat.} Bc7 {[%emt 0:00:23]} 79. Rc5 {[%emt 0:00:39]} Bb6 {[%emt 0:00:30]} 80. Rb5 {[%emt 0:00:03]} Bc7 {[%emt 0:00:27]} 81. g5 {[%emt 0:01:54]} Rc6 {[%emt 0:01:13]} 82. Be4 {[%emt 0:00:32]} Rc4 {[%emt 0:01:45]} 83. Kf3 {[%emt 0:00:18]} Rc3+ {[%emt 0:00:05]} 84. Kg4 {[%emt 0:00:10]} Rc4 {[%emt 0:00:16]} 85. Kf5 {[%emt 0:01:00]} Bd6 {[%emt 0:02:46]} 86. Rb7 {[%emt 0:01:29]} Rc5+ {[%emt 0:00:12]} 87. Kg4 {[%emt 0:00:05]} Rc4 {[%emt 0:00:21] [#]} (87... Rc7 $14) 88. Rxf7+ $3 $18 {[%emt 0:00:36][%mdl 576] Decoy} Kxf7 {[%emt 0:00:05]} 89. Bd5+ {[%emt 0:00:03]} Kg6 {[%emt 0:00:40]} 90. Bxc4 {[%emt 0:00:02] Intending f5+ and mate. KB-KB} Be7 {[%emt 0:00:08]} 91. Bd3+ {[%emt 0:00:33]} Kf7 {[%emt 0:00:12]} 92. Kf5 {[%emt 0:01:07]} Bd6 {[%emt 0:01:19]} 93. Be2 {[%emt 0:00:02]} Bc7 {[%emt 0:00:19]} 94. Bf3 {[%emt 0:00:18]} Bd6 {[%emt 0:00:05]} 95. Bg4 {[%emt 0:00:16]} Bc7 {[%emt 0:00:08]} 96. Bd1 {[%emt 0:00:34]} Bd6 {[%emt 0:00:05]} 97. Bh5+ {[%emt 0:01:03]} Kg7 {[%emt 0:00:05]} 98. Be8 $1 {[%emt 0:00:31]} Bc7 {[%emt 0:00:07]} 99. Ba4 {[%emt 0:00:33]} Kf7 {[%emt 0:00:07]} 100. Bb3+ {[%emt 0:00:06]} Kg7 {[%emt 0:00:05]} 101. Bc4 {[%emt 0:00:24]} Bd6 {[%emt 0:00:07]} 102. Bb5 {[%emt 0:01:02]} Kf7 {[%emt 0:00:07]} 103. Bc6 $1 {[%emt 0:00:30]} Bc7 {[%emt 0:00:06]} 104. Kg4 {[%emt 0:00:55]} Ba5 {[%emt 0:00:54]} 105. Kf3 {[%emt 0:00:52]} Bd2 {[%emt 0:00:28]} 106. Kg4 {[%emt 0:01:27]} (106. Bd5+ $16 Kg6 107. Kg4) 106... Bc3 {[%emt 0:00:20]} (106... Ba5 $1 $11 {keeps the balance.}) 107. Bd5+ {[%emt 0:02:06]} Kg7 {[%emt 0:00:05]} 108. f5 {[%emt 0:00:27]} Bb2 {[%emt 0:00:06]} 109. Bc4 {[%emt 0:00:43]} Bc3 {[%emt 0:00:05]} 110. Bb5 {[%emt 0:00:33]} Bd4 {[%emt 0:00:16]} 111. Be8 {[%emt 0:00:19]} Bc3 $2 {[%emt 0:00:24][%mdl 8192] This move loses the game for Black.} (111... Kf8 $16) 112. Bh5 $1 {[%emt 0:00:13] White mates.} Bb2 {[%emt 0:00:22] [#]} 113. Kf3 $1 {[%emt 0:00:20]} Bc3 {[%emt 0:06:52]} 114. Ke4 {[%emt 0:00:20]} Bb2 {[%emt 0:00:04] [#]} 115. Kd5 $1 {[%emt 0:01:11]} Bc1 {[%emt 0:00:34]} 116. f6+ {[%emt 0:00:08]} Kh7 {[%emt 0:00:41]} 117. g6+ {[%emt 0:00:14]} Kh6 {[%emt 0:00:06]} 118. g7 {[%emt 0:00:32]} Kh7 {[%emt 0:00:03]} 119. Bf7 {[%emt 0:00:19]} Bb2 {[%emt 0:00:22]} 120. g8=Q+ {Weighted Error Value: White=0.07 (flawless) /Black=0.06 (flawless)} 1-0

[Event "Czech Championship U20 Open 2023"]
[Site "Jaromerice nad Rokytnou"]
[Date "2023.03.12"]
[Round "3.1"]
[White "Mach, Petr"]
[Black "Hlavina, Matous"]
[Result "1/2-1/2"]
[ECO "D85"]
[WhiteElo "2167"]
[BlackElo "2091"]
[Annotator "TA"]
[PlyCount "70"]
[EventDate "2023.03.10"]
[EventType "tourn"]
[EventCountry "CZE"]
[SourceTitle "playchess.com"]
[Source "ChessBase"]
[SourceQuality "1"]
[TimeControl "40/5400+30:1800+30"]

{[%evp 26,70,0,0,4,1,6,6,0,2,11,11,9,0,-8,-11,-11,-6,-1,-8,-12,-12,-8,-8,7,7,8,0,10,0,10,0,0,-42,-42,-42,-42,-42,-42,-42,-42,-42,-38,-38,-38,-31,-2]} 1. d4 {[%emt 0:00:04]} Nf6 {[%emt 0:01:27]} 2. c4 {[%emt 0:00:16]} g6 {[%emt 0:00:40]} 3. Nc3 {[%emt 0:00:23]} d5 {[%emt 0:00:24]} 4. cxd5 {[%emt 0:00:09]} Nxd5 {[%emt 0:00:18]} 5. e4 {[%emt 0:00:08]} Nxc3 {[%emt 0:00:04]} 6. bxc3 {[%emt 0:00:09]} Bg7 {[%emt 0:00:04]} 7. Nf3 {[%emt 0:00:08]} c5 {[%emt 0:00:08]} 8. Rb1 {[%emt 0:00:06]} O-O {[%emt 0:01:29]} 9. Be2 {[%emt 0:02:20]} cxd4 {[%emt 0:02:32]} 10. cxd4 {[%emt 0:00:12]} Qa5+ {[%emt 0:01:10]} 11. Qd2 {[%emt 0:02:09]} Qxd2+ {[%emt 0:02:05]} 12. Bxd2 {[%emt 0:00:09]} b6 {[%emt 0:00:53]} 13. Rc1 {[%emt 0:02:55]} Bb7 {[%emt 0:01:10]} 14. Bd3 {[%emt 0:01:09]} Rd8 {[%emt 0:02:49] D85: Exchange Grünfeld: Unusual White 7th moves and lines with 7 Nf3.} 15. Rc7 {[%emt 0:01:04][%csl LRb7,LRe7]} Rd7 {[%emt 0:01:08]} 16. Rxd7 {[%emt 0:00:17]} Nxd7 {[%emt 0:00:12] The position is equal.} 17. Ke2 {[%emt 0:00:29]} Nf6 {[%emt 0:03:33]} 18. d5 {[%emt 0:00:30]} Nd7 {[%emt 0:02:38]} 19. Be3 {[%emt 0:01:17]} Rc8 {[%emt 0:02:15]} 20. Rc1 {[%emt 0:00:59]} Rxc1 {[%emt 0:00:55]} 21. Bxc1 {[%emt 0:00:07]} Nc5 {[%emt 0:00:34]} 22. Ba3 {[%emt 0:00:35]} Nxd3 {[%emt 0:03:02]} 23. Kxd3 $11 {[%emt 0:00:15][%mdl 4096] Endgame KBB-KBN} Kf8 {[%emt 0:00:12]} 24. Nd4 {[%emt 0:01:51]} Bxd4 {[%emt 0:02:09]} 25. Kxd4 {[%emt 0:01:40] KB-KB} Ke8 {[%emt 0:00:12] [#]} 26. g3 $146 {[%emt 0:00:11]} ({Predecessor:} 26. Bc1) 26... Kd7 {[%emt 0:00:45]} 27. f4 {[%emt 0:00:08]} Ba6 {[%emt 0:00:56]} 28. e5 {[%emt 0:01:37]} Bf1 {[%emt 0:02:11]} 29. d6 {[%emt 0:00:59]} exd6 {[%emt 0:01:15] Black is slightly better.} 30. Bxd6 {[%emt 0:00:30]} Bh3 {[%emt 0:00:36]} 31. Bb8 {[%emt 0:01:17]} Kc6 {[%emt 0:00:34]} 32. Bd6 {[%emt 0:00:30]} (32. Bxa7 $2 {perishes.} Kb7 33. Bxb6 Kxb6 $19) 32... Be6 {[%emt 0:00:33]} 33. a3 {[%emt 0:00:12]} Kb5 {[%emt 0:00:27]} 34. Be7 {[%emt 0:00:22]} Ka4 {[%emt 0:01:10]} 35. Kc3 {[%emt 0:00:06]} h5 {[%emt 0:00:26] Weighted Error Value: White=0.05 (flawless) /Black=0.03 (flawless)} 1/2-1/2